lending/lending_fUSD_20250808
["ID","MTS","AMOUNT","RATE_DAILY","PERIOD"]
[377974845,1754640650854,-1490.37,0.00018776,2]
[377974846,1754640650863,-235.683097,0.00018776,2]
[377974847,1754640650874,-159.341507,0.00018776,2]
[377974848,1754640650885,-159.341507,0.00018776,2]
[377974849,1754640650895,-400.0,0.00018776,2]
[377974850,1754640650904,-151.0,0.00018776,2]
[377974851,1754640650913,-151.0,0.00018776,2]
[377974852,1754640650923,-151.34891776,0.00018776,2]
[377974853,1754640650933,-820.9,0.00018776,2]
[377974854,1754640650942,-1059.17,0.00018776,2]
[377974855,1754640650952,-159.341507,0.00018776,2]
[377974856,1754640650961,-1392.32,0.00018776,2]
[377974857,1754640650971,-1358.2,0.00018776,2]
[377974858,1754640650984,-211.13338352,0.00018776,2]
[377974859,1754640650994,-159.341507,0.00018776,2]
[377974860,1754640651003,-1494.58,0.00018776,2]
[377974861,1754640651012,-400.0,0.00018776,2]
[377974862,1754640651023,-400.0,0.00018776,2]
[377974863,1754640651033,-151.0,0.00018776,2]
[377974864,1754640651043,-1481.25,0.00018776,2]
[377974865,1754640651052,-151.0,0.00018776,2]
[377974866,1754640651061,-204.71285,0.00018776,2]
[377974867,1754640651071,-478.89,0.00018776,2]
[377974868,1754640651080,-400.0,0.00018776,2]
[377974869,1754640651090,-151.0,0.00018776,2]
[377974870,1754640651099,-663.83,0.00018776,2]
[377974871,1754640651109,-253.28146,0.00018776,2]
[377974872,1754640651118,-400.0,0.00018776,2]
[377974873,1754640651128,-151.0,0.00018776,2]
[377974874,1754640651137,-154.676203,0.00018776,2]
[377974875,1754640651147,-1190.77,0.00018776,2]
[377974876,1754640651156,-852.12,0.00018776,2]
[377974877,1754640651166,-1562.8,0.00018776,2]
[377974878,1754640651175,-837.54,0.00018776,2]
[377974879,1754640651184,-151.0,0.00018776,2]
[377974880,1754640651194,-151.0,0.00018776,2]
[377974881,1754640651203,-151.0,0.00018776,2]
[377974882,1754640651212,-151.0,0.00018776,2]
[377974883,1754640651221,-151.0,0.00018776,2]
[377974884,1754640651231,-151.0,0.00018776,2]
[377974885,1754640651240,-151.0,0.00018776,2]
[377974886,1754640651249,-151.0,0.00018776,2]
[377974887,1754640651259,-463.92,0.00018776,2]
[377974888,1754640651268,-151.0,0.00018776,2]
[377974889,1754640651277,-738.23,0.00018776,2]
[377974890,1754640651286,-1146.95,0.00018776,2]
[377974891,1754640651295,-151.0,0.00018776,2]
[377974892,1754640651303,-155.915594,0.00018776,2]
[377974893,1754640651313,-1135.66,0.00018776,2]
[377974894,1754640651322,-923.75,0.00018776,2]
[377974895,1754640651331,-286.26463805,0.00018776,2]
[377974896,1754640651341,-400.0,0.00018776,2]
[377974897,1754640651350,-400.0,0.00018776,2]
[377974898,1754640651360,-1186.28,0.00018776,2]
[377974899,1754640651368,-1177.45,0.00018776,2]
[377974900,1754640651377,-400.0,0.00018776,2]
[377974901,1754640651387,-400.0,0.00018776,2]
[377974902,1754640651397,-400.0,0.00018776,2]
[377974903,1754640651406,-400.0,0.00018776,2]
[377974904,1754640651415,-1028.29,0.00018776,2]
[377974905,1754640651424,-151.0,0.00018776,2]
[377974906,1754640651433,-151.0,0.00018776,2]
[377974907,1754640651443,-1119.9,0.00018776,2]
[377974908,1754640651452,-400.0,0.00018776,2]
[377974909,1754640651462,-951.98,0.00018776,2]
[377974910,1754640651471,-151.0,0.00018776,2]
[377974911,1754640651481,-424.57,0.00018776,2]
[377974912,1754640651490,-151.0,0.00018776,2]
[377974913,1754640651499,-400.0,0.00018776,2]
[377974914,1754640651509,-151.0,0.00018776,2]
[377974915,1754640651518,-648.69,0.00018776,2]
[377974916,1754640651527,-400.0,0.00018776,2]
[377974917,1754640651537,-400.0,0.00018776,2]
[377974918,1754640651546,-400.0,0.00018776,2]
[377974919,1754640651556,-400.0,0.00018776,2]
[377974920,1754640651566,-1072.13,0.00018776,2]
[377974921,1754640651576,-400.0,0.00018776,2]
[377974922,1754640651585,-400.0,0.00018776,2]
[377974923,1754640651594,-400.0,0.00018776,2]
[377974924,1754640651603,-400.0,0.00018776,2]
[377974925,1754640651612,-151.0,0.00018776,2]
[377974926,1754640651621,-151.0,0.00018776,2]
[377974927,1754640651630,-445.40660308,0.00018776,2]
[377974928,1754640651640,-400.0,0.00018776,2]
[377974929,1754640651650,-1110.86,0.00018776,2]
[377974930,1754640651659,-400.0,0.00018776,2]
[377974931,1754640651668,-400.0,0.00018776,2]
[377974932,1754640651678,-880.69,0.00018776,2]
[377974933,1754640651687,-400.0,0.00018776,2]
[377974934,1754640651696,-1275.87,0.00018776,2]
[377974935,1754640651706,-860.94,0.00018776,2]
[377974936,1754640651715,-306.12245091,0.00018776,2]
[377974937,1754640651724,-652.01,0.00018776,2]
[377974938,1754640651733,-400.0,0.00018776,2]
[377974939,1754640651743,-151.0,0.00018776,2]
[377974940,1754640651752,-854.0,0.00018776,2]
[377974941,1754640651762,-151.0,0.00018776,2]
[377974942,1754640651771,-151.0,0.00018776,2]
[377974943,1754640651780,-151.0,0.00018776,2]
[377974944,1754640651790,-151.0,0.00018776,2]
[377974945,1754640651799,-156.833156,0.00018776,2]
[377974946,1754640651808,-151.0,0.00018776,2]
[377974947,1754640651818,-151.0,0.00018776,2]
[377974948,1754640651827,-400.0,0.00018776,2]
[377974949,1754640651837,-151.0,0.00018776,2]
[377974950,1754640651846,-151.0,0.00018776,2]
[377974951,1754640651856,-1629.09,0.00018776,2]
[377974952,1754640651865,-400.0,0.00018776,2]
[377974953,1754640651874,-158.24042392,0.00018776,2]
[377974954,1754640651884,-1487.53,0.00018776,2]
[377974955,1754640651894,-400.0,0.00018776,2]
[377974956,1754640651903,-400.0,0.00018776,2]
[377974957,1754640651913,-438.86,0.00018776,2]
[377974958,1754640651922,-400.0,0.00018776,2]
[377974959,1754640651932,-1447.29,0.00018776,2]
[377974960,1754640651942,-400.0,0.00018776,2]
[377974961,1754640651956,-151.0,0.00018776,2]
[377974962,1754640651970,-155.40279,0.00018776,2]
[377974963,1754640651986,-1106.54,0.00018776,2]
[377974964,1754640651999,-151.0,0.00018776,2]
[377974965,1754640652008,-151.0,0.00018776,2]
[377974966,1754640652018,-151.0,0.00018776,2]
[377974967,1754640652027,-151.0,0.00018776,2]
[377974968,1754640652037,-400.0,0.00018776,2]
[377974969,1754640652046,-842.05,0.00018776,2]
[377974970,1754640652056,-400.0,0.00018776,2]
[377974971,1754640652066,-400.0,0.00018776,2]
[377974972,1754640652076,-1285.96,0.00018776,2]
[377974973,1754640652085,-400.0,0.00018776,2]
[377974974,1754640652095,-1180.1,0.00018776,2]
[377974975,1754640652105,-188.490118,0.00018776,2]
[377974976,1754640652115,-400.0,0.00018776,2]
[377974977,1754640652124,-400.0,0.00018776,2]
[377974978,1754640652133,-487.9,0.00018776,2]
[377974979,1754640652144,-151.0,0.00018776,2]
[377974980,1754640652154,-151.0,0.00018776,2]
[377974981,1754640652164,-151.0,0.00018776,2]
[377974982,1754640652174,-400.0,0.00018776,2]
[377974983,1754640652184,-151.0,0.00018776,2]
[377974984,1754640652193,-151.0,0.00018776,2]
[377974985,1754640652204,-151.0,0.00018776,2]
[377974986,1754640652213,-706.17,0.00018776,2]
[377974987,1754640652222,-151.0,0.00018776,2]
[377974988,1754640652232,-152.043144,0.00018776,2]
[377974989,1754640652241,-623.95,0.00018776,2]
[377974990,1754640652250,-776.62,0.00018776,2]
[377974991,1754640652260,-151.0,0.00018776,2]
[377974992,1754640652270,-151.0,0.00018776,2]
[377974993,1754640652279,-151.0,0.00018776,2]
[377974994,1754640652288,-476.1,0.00018776,2]
[377974995,1754640652297,-493.88,0.00018776,2]
[377974996,1754640652306,-400.0,0.00018776,2]
[377974997,1754640652315,-700.87,0.00018776,2]
[377974998,1754640652325,-400.0,0.00018776,2]
[377974999,1754640652334,-151.0,0.00018776,2]
[377975000,1754640652343,-400.0,0.00018776,2]
[377975001,1754640652352,-158.962264,0.00018776,2]
[377975002,1754640652361,-400.0,0.00018776,2]
[377975003,1754640652371,-474.94,0.00018776,2]
[377975004,1754640652380,-795.96,0.00018776,2]
[377975005,1754640652389,-400.0,0.00018776,2]
[377975006,1754640652400,-1302.48,0.00018776,2]
[377975007,1754640652410,-400.0,0.00018776,2]
[377975008,1754640652419,-1471.39,0.00018776,2]
[377975009,1754640652428,-422.17,0.00018776,2]
[377975010,1754640652437,-837.24,0.00018776,2]
[377975011,1754640652446,-151.230953,0.00018776,2]
[377975012,1754640652455,-852.02,0.00018776,2]
[377975013,1754640652465,-4031.01,0.00018776,2]
[377975014,1754640652474,-151.0,0.00018776,2]
[377975015,1754640652483,-151.0,0.00018776,2]
[377975016,1754640652492,-910.87,0.00018776,2]
[377975017,1754640652501,-570.76,0.00018776,2]
[377975018,1754640652510,-1017.72,0.00018776,2]
[377975019,1754640652519,-151.0,0.00018776,2]
[377975020,1754640652529,-400.0,0.00018776,2]
[377975021,1754640652538,-152.962062,0.00018776,2]
[377975022,1754640652547,-152.962062,0.00018776,2]
[377975023,1754640652557,-152.962062,0.00018776,2]
[377975024,1754640652566,-152.962062,0.00018776,2]
[377975025,1754640652575,-400.0,0.00018776,2]
[377975026,1754640652584,-1109.32,0.00018776,2]
[377975027,1754640652593,-183.749703,0.00018776,2]
[377975028,1754640652602,-152.962062,0.00018776,2]
[377975029,1754640652611,-152.962062,0.00018776,2]
[377975030,1754640652621,-597.63,0.00018776,2]
[377975031,1754640652630,-152.962062,0.00018776,2]
[377975032,1754640652639,-152.962062,0.00018776,2]
[377975033,1754640652650,-400.0,0.00018776,2]
[377975034,1754640652659,-151.0,0.00018776,2]
[377975035,1754640652668,-151.0,0.00018776,2]
[377975036,1754640652677,-151.0,0.00018776,2]
[377975037,1754640652686,-429.03,0.00018776,2]
[377975038,1754640652695,-151.0,0.00018776,2]
[377975039,1754640652705,-886.86,0.00018776,2]
[377975040,1754640652714,-400.0,0.00018776,2]
[377975041,1754640652723,-400.0,0.00018776,2]
[377975042,1754640652732,-1016.63,0.00018776,2]
[377975043,1754640652743,-1255.91,0.00018776,2]
[377975044,1754640652752,-400.0,0.00018776,2]
[377975045,1754640652761,-890.22,0.00018776,2]
[377975046,1754640652770,-166.757556,0.00018776,2]
[377975047,1754640652780,-166.757556,0.00018776,2]
[377975048,1754640652789,-166.757556,0.00018776,2]
[377975049,1754640652799,-400.0,0.00018776,2]
[377975050,1754640652808,-550.86,0.00018776,2]
[377975051,1754640652817,-400.0,0.00018776,2]
[377975052,1754640652826,-1076.27,0.00018776,2]
[377975053,1754640652836,-166.757556,0.00018776,2]
[377975054,1754640652845,-166.757556,0.00018776,2]
[377975055,1754640652854,-166.757556,0.00018776,2]
[377975056,1754640652863,-3868.38,0.00018776,2]
[377975057,1754640652873,-400.0,0.00018776,2]
[377975058,1754640652882,-400.0,0.00018776,2]
[377975059,1754640652891,-659.9,0.00018776,2]
[377975060,1754640652901,-591.0,0.00018776,2]
[377975061,1754640652910,-658.23,0.00018776,2]
[377975062,1754640652920,-151.0,0.00018776,2]
[377975063,1754640652929,-152.979224,0.00018776,2]
[377975064,1754640652939,-400.0,0.00018776,2]
[377975065,1754640652948,-151.0,0.00018776,2]
[377975066,1754640652957,-151.0,0.00018776,2]
[377975067,1754640652967,-151.0,0.00018776,2]
[377975068,1754640652979,-400.0,0.00018776,2]
[377975069,1754640652989,-548.04,0.00018776,2]
[377975070,1754640652998,-400.0,0.00018776,2]
[377975071,1754640653008,-400.0,0.00018776,2]
[377975072,1754640653018,-737.64,0.00018776,2]
[377975073,1754640653028,-1616.45,0.00018776,2]
[377975074,1754640653037,-151.0,0.00018776,2]
[377975075,1754640653046,-154.002554,0.00018776,2]
[377975076,1754640653057,-151.0,0.00018776,2]
[377975077,1754640653067,-400.0,0.00018776,2]
[377975078,1754640653076,-151.0,0.00018776,2]
[377975079,1754640653085,-151.0,0.00018776,2]
[377975080,1754640653094,-151.0,0.00018776,2]
[377975081,1754640653104,-151.0,0.00018777,2]
[377975082,1754640653113,-151.0,0.00018777,2]
[377975083,1754640653123,-151.0,0.00018777,2]
[377975084,1754640653132,-151.0,0.00018777,2]
[377975085,1754640653144,-152.523801,0.00018777,2]
[377975086,1754640653153,-151.0,0.00018777,2]
[377975087,1754640653162,-151.0,0.00018777,2]
[377975088,1754640653171,-151.0,0.00018777,2]
[377975089,1754640653181,-151.0,0.00018777,2]
[377975090,1754640653190,-151.0,0.00018777,2]
[377975091,1754640653200,-157.556778,0.00018777,2]
[377975092,1754640653209,-151.0,0.00018777,2]
[377975093,1754640653218,-151.0,0.00018777,2]
[377975094,1754640653227,-151.0,0.00018777,2]
[377975095,1754640653237,-151.0,0.00018777,2]
[377975096,1754640653246,-151.0,0.00018777,2]
[377975097,1754640653255,-151.0,0.00018777,2]
[377975098,1754640653264,-151.0,0.00018777,2]
[377975099,1754640653274,-151.0,0.00018777,2]
[377975100,1754640653283,-151.0,0.00018777,2]
[377975101,1754640653292,-151.0,0.00018777,2]
[377975102,1754640653302,-151.0,0.00018777,2]
[377975103,1754640653311,-153.497451,0.00018777,2]
[377975104,1754640653320,-151.0,0.00018777,2]
[377975105,1754640653330,-151.678078,0.00018777,2]
[377975106,1754640653339,-404.02702024,0.00018777,2]
[377975107,1754640653348,-400.0,0.00018777,2]
[377975108,1754640653358,-153.116039,0.00018777,2]
[377975109,1754640653367,-151.0,0.00018777,2]
[377975110,1754640653376,-153.330257,0.00018777,2]
[377975111,1754640653386,-151.0,0.00018777,2]
[377975112,1754640653398,-151.0,0.00018777,2]
[377975113,1754640653408,-151.0,0.00018777,2]
[377975114,1754640653417,-151.0,0.00018777,2]
[377975115,1754640653427,-151.0,0.00018777,2]
[377975116,1754640653436,-151.448791,0.00018777,2]
[377975117,1754640653445,-152.977732,0.00018777,2]
[377975118,1754640653454,-151.0,0.00018777,2]
[377975119,1754640653463,-151.0,0.00018777,2]
[377975120,1754640653473,-151.0,0.00018777,2]
[377975121,1754640653482,-152.091188,0.00018777,2]
[377975122,1754640653491,-151.0,0.00018777,2]
[377975123,1754640653500,-151.0,0.00018777,2]
[377975124,1754640653512,-151.0,0.00018777,2]
[377975125,1754640653521,-151.0,0.00018777,2]
[377975126,1754640653530,-152.929513,0.00018777,2]
[377975127,1754640653539,-151.0,0.00018777,2]
[377975128,1754640653549,-151.0,0.00018777,2]
[377975129,1754640653558,-151.0,0.00018777,2]
[377975130,1754640653568,-305.242426,0.00018777,2]
[377975131,1754640653580,-305.242426,0.00018777,2]
[377975132,1754640653589,-305.242426,0.00018777,2]
[377975133,1754640653599,-305.242426,0.00018777,2]
[377975134,1754640653608,-305.242426,0.00018777,2]
[377975135,1754640653617,-305.242426,0.00018777,2]
[377975136,1754640653627,-400.0,0.00018777,2]
[377975137,1754640653636,-308.72736939,0.00018777,2]
[377975138,1754640653646,-151.0,0.00018777,2]
[377975139,1754640653656,-151.0,0.00018777,2]
[377975140,1754640653665,-151.0,0.00018777,2]
[377975141,1754640653675,-151.0,0.00018777,2]
[377975142,1754640653684,-151.0,0.00018777,2]
[377975143,1754640653694,-151.0,0.00018777,2]
[377975144,1754640653703,-151.0,0.00018777,2]
[377975145,1754640653712,-151.0,0.00018777,2]
[377975146,1754640653721,-228.664533,0.00018777,2]
[377975147,1754640653730,-166.70228,0.00018777,2]
[377975148,1754640653740,-151.0,0.00018777,2]
[377975149,1754640653749,-151.0,0.00018777,2]
[377975150,1754640653758,-151.0,0.00018777,2]
[377975151,1754640653767,-401.4,0.00018777,2]
[377975152,1754640653776,-153.764847,0.00018777,2]
[377975153,1754640653786,-154.476163,0.00018777,2]
[377975154,1754640653796,-400.0,0.00018777,2]
[377975155,1754640653806,-454.85,0.00018777,2]
[377975156,1754640653816,-400.0,0.00018777,2]
[377975157,1754640653825,-151.0,0.00018777,2]
[377975158,1754640653836,-151.0,0.00018777,2]
[377975159,1754640653846,-158.90794,0.00018777,2]
[377975160,1754640653856,-153.407447,0.00018777,2]
[377975161,1754640653865,-400.0,0.00018777,2]
[377975162,1754640653876,-400.0,0.00018777,2]
[377975163,1754640653886,-151.0,0.00018777,2]
[377975164,1754640653895,-151.0,0.00018777,2]
[377975165,1754640653904,-151.0,0.00018777,2]
[377975166,1754640653913,-151.0,0.00018777,2]
[377975167,1754640653923,-151.0,0.00018777,2]
[377975168,1754640653932,-151.0,0.00018777,2]
[377975169,1754640653941,-400.0,0.00018777,2]
[377975170,1754640653950,-400.0,0.00018777,2]
[377975171,1754640653960,-151.0,0.00018777,2]
[377975172,1754640653971,-400.0,0.00018777,2]
[377975173,1754640653985,-400.0,0.00018777,2]
[377975174,1754640653995,-400.0,0.00018777,2]
[377975175,1754640654004,-461.19,0.00018777,2]
[377975176,1754640654016,-511.06,0.00018777,2]
[377975177,1754640654026,-400.0,0.00018777,2]
[377975178,1754640654036,-151.0,0.00018777,2]
[377975179,1754640654045,-151.0,0.00018777,2]
[377975180,1754640654056,-151.0,0.00018777,2]
[377975181,1754640654066,-151.0,0.00018777,2]
[377975182,1754640654075,-187.225596,0.00018777,2]
[377975183,1754640654085,-410.11544181,0.00018777,2]
[377975184,1754640654095,-400.0,0.00018777,2]
[377975185,1754640654104,-184.231736,0.00018777,2]
[377975186,1754640654114,-536.19,0.00018777,2]
[377975187,1754640654123,-400.0,0.00018777,2]
[377975188,1754640654133,-186.32365,0.00018777,2]
[377975189,1754640654144,-153.383398,0.00018777,2]
[377975190,1754640654154,-400.0,0.00018777,2]
[377975191,1754640654163,-400.0,0.00018777,2]
[377975192,1754640654172,-400.0,0.00018777,2]
[377975193,1754640654182,-400.0,0.00018777,2]
[377975194,1754640654191,-650.5,0.00018777,2]
[377975195,1754640654200,-151.0,0.00018777,2]
[377975196,1754640654209,-151.0,0.00018777,2]
[377975197,1754640654219,-163.676225,0.00018777,2]
[377975198,1754640654228,-151.0,0.00018777,2]
[377975199,1754640654238,-151.0,0.00018777,2]
[377975200,1754640654247,-260.812407,0.00018777,2]
[377975201,1754640654256,-151.0,0.00018777,2]
[377975202,1754640654265,-151.0,0.00018777,2]
[377975203,1754640654274,-354.354859,0.00018777,2]
[377975204,1754640654283,-354.354859,0.00018777,2]
[377975205,1754640654292,-354.354859,0.00018777,2]
[377975206,1754640654302,-354.354859,0.00018777,2]
[377975207,1754640654311,-354.354859,0.00018777,2]
[377975208,1754640654320,-354.354859,0.00018777,2]
[377975209,1754640654329,-155.441264,0.00018777,2]
[377975210,1754640654339,-155.441264,0.00018777,2]
[377975211,1754640654349,-155.441264,0.00018777,2]
[377975212,1754640654360,-155.441264,0.00018777,2]
[377975213,1754640654370,-155.441264,0.00018777,2]
[377975214,1754640654379,-151.0,0.00018777,2]
[377975215,1754640654389,-189.54371,0.00018777,2]
[377975216,1754640654399,-151.0,0.00018777,2]
[377975217,1754640654408,-151.0,0.00018777,2]
[377975218,1754640654418,-151.0,0.00018777,2]
[377975219,1754640654428,-151.0,0.00018777,2]
[377975220,1754640654438,-151.0,0.00018777,2]
[377975221,1754640654448,-151.0,0.00018777,2]
[377975222,1754640654458,-151.0,0.00018777,2]
[377975223,1754640654469,-155.612861,0.00018777,2]
[377975224,1754640654478,-2368.85,0.00018777,2]
[377975225,1754640654488,-1574.25,0.00018777,2]
[377975226,1754640654498,-151.0,0.00018777,2]
[377975227,1754640654508,-151.0,0.00018777,2]
[377975228,1754640654518,-151.0,0.00018777,2]
[377975229,1754640654528,-400.0,0.00018777,2]
[377975230,1754640654538,-1433.09,0.00018777,2]
[377975231,1754640654548,-151.0,0.00018777,2]
[377975232,1754640654558,-151.0,0.00018777,2]
[377975233,1754640654568,-151.0,0.00018777,2]
[377975234,1754640654578,-151.0,0.00018777,2]
[377975235,1754640654588,-151.0,0.00018777,2]
[377975236,1754640654598,-151.0,0.00018777,2]
[377975237,1754640654608,-1113.93,0.00018777,2]
[377975238,1754640654617,-677.26,0.00018777,2]
[377975239,1754640654627,-151.0,0.00018777,2]
[377975240,1754640654636,-151.0,0.00018777,2]
[377975241,1754640654646,-151.0,0.00018777,2]
[377975242,1754640654655,-3807.2,0.00018777,2]
[377975243,1754640654665,-151.0,0.00018777,2]
[377975244,1754640654675,-151.0,0.00018777,2]
[377975245,1754640654684,-151.0,0.00018777,2]
[377975246,1754640654694,-151.0,0.00018777,2]
[377975247,1754640654704,-1531.33,0.00018777,2]
[377975248,1754640654714,-502.917184,0.00018777,2]
[377975249,1754640654723,-502.917184,0.00018777,2]
[377975250,1754640654733,-502.917184,0.00018777,2]
[377975251,1754640654743,-151.0,0.00018777,2]
[377975252,1754640654752,-151.0,0.00018777,2]
[377975253,1754640654762,-151.0,0.00018777,2]
[377975254,1754640654772,-502.917184,0.00018777,2]
[377975255,1754640654782,-502.917184,0.00018777,2]
[377975256,1754640654792,-502.917184,0.00018777,2]
[377975257,1754640654802,-151.0,0.00018777,2]
[377975258,1754640654812,-151.0,0.00018777,2]
[377975259,1754640654822,-247.818032,0.00018777,2]
[377975260,1754640654831,-1405.22,0.00018777,2]
[377975261,1754640654841,-151.0,0.00018777,2]
[377975262,1754640654851,-151.0,0.00018777,2]
[377975263,1754640654861,-1230.6,0.00018777,2]
[377975264,1754640654871,-159.341507,0.00018777,2]
[377975265,1754640654880,-159.341507,0.00018777,2]
[377975266,1754640654890,-159.341507,0.00018777,2]
[377975267,1754640654900,-159.341507,0.00018777,2]
[377975268,1754640654909,-159.341507,0.00018777,2]
[377975269,1754640654920,-159.341507,0.00018777,2]
[377975270,1754640654930,-151.0,0.00018777,2]
[377975271,1754640654940,-151.0,0.00018777,2]
[377975272,1754640654949,-151.0,0.00018777,2]
[377975273,1754640654961,-151.0,0.00018777,2]
[377975274,1754640654971,-151.0,0.00018777,2]
[377975275,1754640654984,-151.0,0.00018777,2]
[377975276,1754640654994,-151.0,0.00018777,2]
[377975277,1754640655005,-151.0,0.00018777,2]
[377975278,1754640655015,-151.0,0.00018777,2]
[377975279,1754640655025,-151.0,0.00018777,2]
[377975280,1754640655035,-151.737071,0.00018777,2]
[377975281,1754640655045,-151.0,0.00018777,2]
[377975282,1754640655057,-151.0,0.00018777,2]
[377975283,1754640655067,-151.0,0.00018777,2]
[377975284,1754640655077,-151.0,0.00018777,2]
[377975285,1754640655087,-151.0,0.00018777,2]
[377975286,1754640655096,-151.0,0.00018777,2]
[377975287,1754640655106,-151.0,0.00018777,2]
[377975288,1754640655115,-151.0,0.00018777,2]
[377975289,1754640655125,-151.0,0.00018777,2]
[377975290,1754640655135,-412.98881525,0.00018777,2]
[377975291,1754640655146,-1535.41,0.00018777,2]
[377975292,1754640655156,-213.944039,0.00018777,2]
[377975293,1754640655167,-400.0,0.00018777,2]
[377975294,1754640655177,-152.962062,0.00018777,2]
[377975295,1754640655186,-1482.44,0.00018777,2]
[377975296,1754640655196,-152.962062,0.00018777,2]
[377975297,1754640655206,-151.0,0.00018777,2]
[377975298,1754640655216,-166.757556,0.00018777,2]
[377975299,1754640655226,-166.757556,0.00018777,2]
[377975300,1754640655235,-166.757556,0.00018777,2]
[377975301,1754640655245,-166.757556,0.00018777,2]
[377975302,1754640655255,-486.91,0.00018777,2]
[377975303,1754640655265,-151.0,0.00018777,2]
[377975304,1754640655275,-160.772944,0.00018777,2]
[377975305,1754640655284,-151.0,0.00018777,2]
[377975306,1754640655294,-174.2315,0.00018778,2]
[377975307,1754640655304,-155.691091,0.00018778,2]
[377975308,1754640655314,-151.717385,0.00018778,2]
[377975309,1754640655323,-153.503463,0.00018778,2]
[377975310,1754640655333,-151.0,0.00018778,2]
[377975311,1754640655343,-152.881551,0.00018778,2]
[377975312,1754640655352,-151.0,0.00018778,2]
[377975313,1754640655362,-151.0,0.00018778,2]
[377975314,1754640655371,-151.0,0.00018778,2]
[377975315,1754640655381,-151.0,0.00018778,2]
[377975316,1754640655391,-152.466463,0.00018778,2]
[377975317,1754640655401,-151.0,0.00018778,2]
[377975318,1754640655410,-153.164912,0.00018778,2]
[377975319,1754640655420,-153.092407,0.00018778,2]
[377975320,1754640655430,-151.0,0.00018778,2]
[377975321,1754640655439,-153.094341,0.00018778,2]
[377975322,1754640655449,-151.0,0.00018778,2]
[377975323,1754640655459,-153.873875,0.00018778,2]
[377975324,1754640655468,-151.0,0.00018778,2]
[377975325,1754640655478,-153.20117,0.00018778,2]
[377975326,1754640655488,-151.0,0.00018778,2]
[377975327,1754640655498,-154.584143,0.00018778,2]
[377975328,1754640655507,-151.0,0.00018778,2]
[377975329,1754640655517,-151.0,0.00018778,2]
[377975330,1754640655526,-151.0,0.00018778,2]
[377975331,1754640655535,-151.0,0.00018778,2]
[377975332,1754640655545,-151.0,0.00018778,2]
[377975333,1754640655554,-151.0,0.00018778,2]
[377975334,1754640655564,-151.0,0.00018778,2]
[377975335,1754640655574,-153.316524,0.00018778,2]
[377975336,1754640655584,-151.0,0.00018778,2]
[377975337,1754640655594,-151.0,0.00018778,2]
[377975338,1754640655604,-151.0,0.00018778,2]
[377975339,1754640655614,-151.0,0.00018778,2]
[377975340,1754640655624,-151.0,0.00018778,2]
[377975341,1754640655634,-151.0,0.00018778,2]
[377975342,1754640655643,-154.035751,0.00018778,2]
[377975343,1754640655654,-193.963134,0.00018778,2]
[377975344,1754640655663,-151.0,0.00018778,2]